fUSD/lending_fUSD_20260620
["ID","MTS","AMOUNT","RATE_DAILY","PERIOD"]
[425783312,1781888286000,-10000.0,0.00036,7]
[425783316,1781888286000,-500.0,0.00036,2]
[425783317,1781888286000,-2000.0,0.00036,4]
[425783314,1781888286000,-507.45,0.00036,2]
[425783321,1781888286000,-1877.0,0.00036,2]
[425783318,1781888286000,-711.87,0.00036,30]
[425783320,1781888286000,-5085.36,0.00036,30]
[425783319,1781888286000,-809.43,0.00036,30]
[425783322,1781888286000,-1257.63,0.00036,30]
[425783325,1781888286000,-503.46141347,0.00036,30]
[425783324,1781888286000,-8051.7,0.00036,30]
[425783313,1781888286000,-500.0,0.00036,2]
[425783295,1781888286000,-500.0,0.00035945,30]
[425783273,1781888286000,-770.28,0.00035945,30]
[425783293,1781888286000,-1830.44,0.00035945,30]
[425783268,1781888286000,-344.212097,0.00035945,2]
[425783270,1781888286000,-1085.5,0.00035945,30]
[425783271,1781888286000,-552.68,0.00035945,30]
[425783269,1781888286000,-924.86,0.00035945,30]
[425783272,1781888286000,-914.03,0.00035945,30]
[425783276,1781888286000,-500.0,0.00035945,30]
[425783274,1781888286000,-500.0,0.00035945,30]
[425783279,1781888286000,-1720.71,0.00035945,30]
[425783277,1781888286000,-710.65,0.00035945,30]
[425783275,1781888286000,-1108.92,0.00035945,30]
[425783278,1781888286000,-3165.0,0.00035945,30]
[425783283,1781888286000,-850.26,0.00035945,30]
[425783286,1781888286000,-651.48,0.00035945,30]
[425783281,1781888286000,-500.0,0.00035945,30]
[425783280,1781888286000,-1936.23,0.00035945,30]
[425783282,1781888286000,-917.69,0.00035945,30]
[425783284,1781888286000,-500.0,0.00035945,30]
[425783328,1781888286000,-500.0,0.00036,30]
[425783285,1781888286000,-500.0,0.00035945,2]
[425783288,1781888286000,-1252.38,0.00035945,30]
[425783287,1781888286000,-1131.94,0.00035945,30]
[425783289,1781888286000,-500.0,0.00035945,30]
[425783290,1781888286000,-641.75,0.00035945,30]
[425783299,1781888286000,-300.0,0.00035985,10]
[425783298,1781888286000,-300.0,0.00035985,10]
[425783291,1781888286000,-1000.78,0.00035945,30]
[425783292,1781888286000,-500.0,0.00035945,2]
[425783294,1781888286000,-5832.45,0.00035945,30]
[425783327,1781888286000,-500.0,0.00036,30]
[425783368,1781888286000,-151.0,0.00036,30]
[425783326,1781888286000,-500.0,0.00036,30]
[425783362,1781888286000,-651.48,0.00036,30]
[425783371,1781888286000,-1830.44,0.00036,30]
[425783361,1781888286000,-500.0,0.00036,30]
[425783363,1781888286000,-500.0,0.00036,2]
[425783364,1781888286000,-1131.94,0.00036,30]
[425783365,1781888286000,-1252.38,0.00036,30]
[425783367,1781888286000,-1000.78,0.00036,30]
[425783366,1781888286000,-500.0,0.00036,30]
[425783369,1781888286000,-500.0,0.00036,2]
[425783372,1781888286000,-151.0,0.00036,30]
[425783374,1781888286000,-500.0,0.00036,30]
[425783376,1781888286000,-1554.0,0.00036026,7]
[425783381,1781888286000,-300.0,0.0003603,10]
[425783377,1781888286000,-162.73,0.00036027,2]
[425783382,1781888286000,-300.0,0.0003603,10]
[425783378,1781888286000,-212.05402644,0.00036027,2]
[425783383,1781888286000,-195.22,0.0003603,2]
[425783375,1781888286000,-152.0,0.00036026,7]
[425783380,1781888286000,-300.0,0.0003603,10]
[425783373,1781888286000,-5832.45,0.00036,30]
[425783379,1781888286000,-200.0,0.00036028,2]
[425783385,1781888286000,-300.0,0.00036053,10]
[425783384,1781888286000,-300.0,0.00036053,10]
[425783386,1781888286000,-307.29468666,0.00036053,10]
[425783389,1781888286000,-500.0,0.00036054,14]
[425783388,1781888286000,-507.45,0.00036054,2]
[425783330,1781888286000,-500.0,0.00036,30]
[425783359,1781888286000,-917.69,0.00036,30]
[425783370,1781888286000,-236.480512,0.00036,30]
[425783387,1781888286000,-500.0,0.00036054,2]
[425783358,1781888286000,-509.25337026,0.00036,30]
[425783360,1781888286000,-850.26,0.00036,30]
[425783331,1781888286000,-764.17,0.00036,30]
[425783333,1781888286000,-1885.01,0.00036,30]
[425783329,1781888286000,-1286.36,0.00036,30]
[425783332,1781888286000,-4625.81,0.00036,30]
[425783335,1781888286000,-924.86,0.00036,30]
[425783338,1781888286000,-6004.617133,0.00036,30]
[425783337,1781888286000,-1085.5,0.00036,30]
[425783336,1781888286000,-6004.617133,0.00036,30]
[425783345,1781888286000,-3910.209296,0.00036,30]
[425783340,1781888286000,-6004.617133,0.00036,30]
[425783344,1781888286000,-151.0,0.00036,30]
[425783339,1781888286000,-3910.209296,0.00036,30]
[425783343,1781888286000,-552.68,0.00036,30]
[425783334,1781888286000,-3037.54,0.00036,30]
[425783342,1781888286000,-6004.617133,0.00036,30]
[425783341,1781888286000,-3910.209296,0.00036,30]
[425783352,1781888286000,-1108.92,0.00036,30]
[425783354,1781888286000,-710.65,0.00036,30]
[425783349,1781888286000,-914.03,0.00036,30]
[425783357,1781888286000,-1936.23,0.00036,30]
[425783353,1781888286000,-500.0,0.00036,30]
[425783356,1781888286000,-1720.71,0.00036,30]
[425783355,1781888286000,-3165.0,0.00036,30]
[425783348,1781888286000,-151.0,0.00036,30]
[425783350,1781888286000,-770.28,0.00036,30]
[425783347,1781888286000,-3910.209296,0.00036,30]
[425783346,1781888286000,-151.0,0.00036,30]
[425783351,1781888286000,-500.0,0.00036,30]
[425783437,1781888287000,-194.64603168,0.00036064,2]
[425783428,1781888287000,-500.0,0.00036054,2]
[425783426,1781888287000,-500.0,0.00036054,30]
[425783427,1781888287000,-651.48,0.00036054,30]
[425783415,1781888287000,-914.03,0.00036054,30]
[425783421,1781888287000,-3165.0,0.00036054,30]
[425783418,1781888287000,-1108.92,0.00036054,30]
[425783417,1781888287000,-500.0,0.00036054,30]
[425783432,1781888287000,-1000.78,0.00036054,30]
[425783422,1781888287000,-1720.71,0.00036054,30]
[425783425,1781888287000,-850.26,0.00036054,30]
[425783420,1781888287000,-710.65,0.00036054,30]
[425783436,1781888287000,-500.0,0.00036054,30]
[425783429,1781888287000,-1131.94,0.00036054,30]
[425783430,1781888287000,-1252.38,0.00036054,30]
[425783434,1781888287000,-1830.44,0.00036054,30]
[425783433,1781888287000,-166.4564454,0.00036054,2]
[425783435,1781888287000,-5832.45,0.00036054,30]
[425783447,1781888287000,-300.0,0.00036093,10]
[425783439,1781888287000,-152.0,0.00036073,5]
[425783438,1781888287000,-11944.1525214,0.00036064,2]
[425783448,1781888287000,-300.0,0.00036099,10]
[425783449,1781888287000,-300.0,0.00036099,10]
[425783416,1781888287000,-770.28,0.00036054,30]
[425783441,1781888287000,-2304.0612,0.00036076,2]
[425783431,1781888287000,-500.0,0.00036054,30]
[425783424,1781888287000,-917.69,0.00036054,30]
[425783411,1781888287000,-3037.54,0.00036054,30]
[425783414,1781888287000,-552.68,0.00036054,30]
[425783440,1781888287000,-2255.3373,0.00036076,2]
[425783390,1781888287000,-500.0,0.00036054,2]
[425783391,1781888287000,-2000.0,0.00036054,4]
[425783392,1781888287000,-711.87,0.00036054,30]
[425783393,1781888287000,-809.43,0.00036054,30]
[425783394,1781888287000,-5085.36,0.00036054,30]
[425783395,1781888287000,-1877.0,0.00036054,2]
[425783398,1781888287000,-5781.35,0.00036054,30]
[425783396,1781888287000,-410.81574,0.00036054,30]
[425783397,1781888287000,-1257.63,0.00036054,30]
[425783400,1781888287000,-8051.7,0.00036054,30]
[425783399,1781888287000,-410.81574,0.00036054,30]
[425783410,1781888287000,-1885.01,0.00036054,30]
[425783401,1781888287000,-410.81574,0.00036054,30]
[425783402,1781888287000,-410.815745,0.00036054,30]
[425783404,1781888287000,-500.0,0.00036054,30]
[425783406,1781888287000,-1286.36,0.00036054,30]
[425783409,1781888287000,-4625.81,0.00036054,30]
[425783405,1781888287000,-500.0,0.00036054,30]
[425783408,1781888287000,-764.17,0.00036054,30]
[425783407,1781888287000,-500.0,0.00036054,30]
[425783403,1781888287000,-500.0,0.00036054,30]
[425783423,1781888287000,-1936.23,0.00036054,30]
[425783412,1781888287000,-924.86,0.00036054,30]
[425783413,1781888287000,-1085.5,0.00036054,30]
[425783419,1781888287000,-500.0,0.00036054,30]
[425783442,1781888287000,-300.0,0.00036089,10]
[425783443,1781888287000,-300.0,0.00036089,10]
[425783497,1781888287000,-357.82004937,0.00036146,14]
[425783484,1781888287000,-917.69,0.00036109,30]
[425783479,1781888287000,-500.0,0.00036109,30]
[425783476,1781888287000,-770.28,0.00036109,30]
[425783475,1781888287000,-914.03,0.00036109,30]
[425783480,1781888287000,-710.65,0.00036109,30]
[425783482,1781888287000,-1720.71,0.00036109,30]
[425783483,1781888287000,-1936.23,0.00036109,30]
[425783486,1781888287000,-500.0,0.00036109,30]
[425783487,1781888287000,-651.48,0.00036109,30]
[425783498,1781888287000,-1286.108,0.00036149,2]
[425783499,1781888287000,-847.9769,0.00036149,2]
[425783491,1781888287000,-500.0,0.00036109,30]
[425783488,1781888287000,-500.0,0.00036109,2]
[425783496,1781888287000,-2329.0,0.00036134,11]
[425783490,1781888287000,-1252.38,0.00036109,30]
[425783495,1781888287000,-194.61033873,0.00036109,30]
[425783492,1781888287000,-1000.78,0.00036109,30]
[425783493,1781888287000,-1830.44,0.00036109,30]
[425783489,1781888287000,-1131.94,0.00036109,30]
[425783494,1781888287000,-5832.45,0.00036109,30]
[425783500,1781888287000,-500.0,0.00036164,2]
[425783501,1781888287000,-507.45,0.00036164,2]
[425783502,1781888287000,-192.56733499,0.00036164,14]
[425783503,1781888287000,-500.0,0.00036164,2]
[425783445,1781888287000,-307.38,0.00036091,2]
[425783481,1781888287000,-3165.0,0.00036109,30]
[425783478,1781888287000,-1108.92,0.00036109,30]
[425783485,1781888287000,-850.26,0.00036109,30]
[425783477,1781888287000,-500.0,0.00036109,30]
[425783446,1781888287000,-300.0,0.00036093,10]
[425783444,1781888287000,-213.04,0.00036091,2]
[425783453,1781888287000,-500.0,0.00036109,14]
[425783450,1781888287000,-512.0,0.00036104,2]
[425783451,1781888287000,-500.0,0.00036109,2]
[425783455,1781888287000,-2000.0,0.00036109,4]
[425783454,1781888287000,-500.0,0.00036109,2]
[425783458,1781888287000,-5085.36,0.00036109,30]
[425783474,1781888287000,-552.68,0.00036109,30]
[425783452,1781888287000,-507.45,0.00036109,2]
[425783460,1781888287000,-1257.63,0.00036109,30]
[425783456,1781888287000,-711.87,0.00036109,30]
[425783457,1781888287000,-809.43,0.00036109,30]
[425783459,1781888287000,-1877.0,0.00036109,2]
[425783461,1781888287000,-5781.35,0.00036109,30]
[425783471,1781888287000,-3037.54,0.00036109,30]
[425783463,1781888287000,-500.0,0.00036109,30]
[425783473,1781888287000,-1085.5,0.00036109,30]
[425783465,1781888287000,-188.19998883,0.00036109,30]
[425783462,1781888287000,-8051.7,0.00036109,30]
[425783469,1781888287000,-4625.81,0.00036109,30]
[425783467,1781888287000,-500.0,0.00036109,30]
[425783472,1781888287000,-924.86,0.00036109,30]
[425783468,1781888287000,-764.17,0.00036109,30]
[425783466,1781888287000,-1286.36,0.00036109,30]
[425783470,1781888287000,-1885.01,0.00036109,30]
[425783464,1781888287000,-500.0,0.00036109,30]
[425783542,1781888288000,-1936.23,0.00036164,30]
[425783541,1781888288000,-1720.71,0.00036164,30]
[425783536,1781888288000,-500.0,0.00036164,30]
[425783540,1781888288000,-3165.0,0.00036164,30]
[425783537,1781888288000,-1108.92,0.00036164,30]
[425783543,1781888288000,-917.69,0.00036164,30]
[425783539,1781888288000,-710.65,0.00036164,30]
[425783534,1781888288000,-914.03,0.00036164,30]
[425783545,1781888288000,-500.0,0.00036164,30]
[425783535,1781888288000,-770.28,0.00036164,30]
[425783546,1781888288000,-651.48,0.00036164,30]
[425783538,1781888288000,-500.0,0.00036164,30]
[425783548,1781888288000,-1131.94,0.00036164,30]
[425783559,1781888288000,-76069.96228563,0.00036164,2]
[425783553,1781888288000,-151.0,0.00036164,30]
[425783547,1781888288000,-500.0,0.00036164,2]
[425783549,1781888288000,-1252.38,0.00036164,30]
[425783552,1781888288000,-1000.78,0.00036164,30]
[425783551,1781888288000,-151.0,0.00036164,30]
[425783555,1781888288000,-5832.45,0.00036164,30]
[425783554,1781888288000,-1830.44,0.00036164,30]
[425783556,1781888288000,-76069.96228563,0.00036164,2]
[425783569,1781888288000,-711.87,0.00036219,30]
[425783558,1781888288000,-76069.96228563,0.00036164,2]
[425783557,1781888288000,-76069.96228563,0.00036164,2]
[425783565,1781888288000,-500.0,0.00036219,2]
[425783544,1781888288000,-850.26,0.00036164,30]
[425783550,1781888288000,-500.0,0.00036164,30]
[425783531,1781888288000,-151.0,0.00036164,30]
[425783511,1781888288000,-8051.7,0.00036164,30]
[425783533,1781888288000,-289.320155,0.00036164,30]
[425783510,1781888288000,-5781.35,0.00036164,30]
[425783504,1781888288000,-2000.0,0.00036164,4]
[425783507,1781888288000,-5085.36,0.00036164,30]
[425783505,1781888288000,-711.87,0.00036164,30]
[425783506,1781888288000,-809.43,0.00036164,30]
[425783508,1781888288000,-1877.0,0.00036164,2]
[425783509,1781888288000,-1257.63,0.00036164,30]
[425783513,1781888288000,-500.0,0.00036164,30]
[425783512,1781888288000,-500.0,0.00036164,30]
[425783517,1781888288000,-4625.81,0.00036164,30]
[425783518,1781888288000,-1885.01,0.00036164,30]
[425783521,1781888288000,-6004.617133,0.00036164,30]
[425783532,1781888288000,-3910.209293,0.00036164,30]
[425783515,1781888288000,-500.0,0.00036164,30]
[425783519,1781888288000,-3037.54,0.00036164,30]
[425783516,1781888288000,-764.17,0.00036164,30]
[425783520,1781888288000,-924.86,0.00036164,30]
[425783522,1781888288000,-6004.617133,0.00036164,30]
[425783523,1781888288000,-1085.5,0.00036164,30]
[425783525,1781888288000,-6004.617133,0.00036164,30]
[425783524,1781888288000,-3910.209296,0.00036164,30]
[425783526,1781888288000,-3910.209296,0.00036164,30]
[425783529,1781888288000,-552.68,0.00036164,30]
[425783527,1781888288000,-6004.617139,0.00036164,30]
[425783530,1781888288000,-3910.209296,0.00036164,30]
[425783528,1781888288000,-151.0,0.00036164,30]
[425783514,1781888288000,-1286.36,0.00036164,30]
[425783563,1781888288000,-2836.6074,0.00036165,28]
[425783568,1781888288000,-2000.0,0.00036219,4]
[425783562,1781888288000,-2096.47796326,0.00036165,28]
[425783601,1781888288000,-1131.94,0.00036219,30]
[425783595,1781888288000,-1936.23,0.00036219,30]
[425783597,1781888288000,-850.26,0.00036219,30]
[425783603,1781888288000,-500.0,0.00036219,30]
[425783608,1781888288000,-1276.0,0.0003624,2]
[425783604,1781888288000,-1000.78,0.00036219,30]
[425783600,1781888288000,-500.0,0.00036219,2]
[425783607,1781888288000,-3560.0,0.0003624,2]
[425783605,1781888288000,-1830.44,0.00036219,30]
[425783599,1781888288000,-651.48,0.00036219,30]
[425783606,1781888288000,-5832.45,0.00036219,30]
[425783602,1781888288000,-1252.38,0.00036219,30]
[425783596,1781888288000,-917.69,0.00036219,30]
[425783609,1781888288000,-383.0,0.0003624,2]
[425783620,1781888288000,-711.87,0.00036273,30]
[425783610,1781888288000,-1360.0,0.0003624,2]
[425783615,1781888288000,-478.0,0.00036273,2]
[425783612,1781888288000,-778.0,0.0003624,2]
[425783614,1781888288000,-329.61,0.00036264,30]
[425783611,1781888288000,-150.0,0.0003624,2]
[425783613,1781888288000,-6000.0,0.00036248,10]
[425783616,1781888288000,-367.67341826,0.00036273,2]
[425783617,1781888288000,-507.45,0.00036273,2]
[425783618,1781888288000,-500.0,0.00036273,2]
[425783619,1781888288000,-2000.0,0.00036273,4]
[425783623,1781888288000,-1877.0,0.00036273,2]
[425783621,1781888288000,-809.43,0.00036273,30]
[425783598,1781888288000,-500.0,0.00036219,30]
[425783590,1781888288000,-1108.92,0.00036219,30]
[425783564,1781888288000,-173.81,0.00036185,2]
[425783584,1781888288000,-924.86,0.00036219,30]
[425783588,1781888288000,-770.28,0.00036219,30]
[425783567,1781888288000,-500.0,0.00036219,2]
[425783566,1781888288000,-507.45,0.00036219,2]
[425783622,1781888288000,-5085.36,0.00036273,30]
[425783560,1781888288000,-1260.61237222,0.00036164,2]
[425783561,1781888288000,-1260.61237222,0.00036164,2]
[425783570,1781888288000,-809.43,0.00036219,30]
[425783572,1781888288000,-1877.0,0.00036219,2]
[425783573,1781888288000,-1257.63,0.00036219,30]
[425783578,1781888288000,-1286.36,0.00036219,30]
[425783574,1781888288000,-5781.35,0.00036219,30]
[425783577,1781888288000,-500.0,0.00036219,30]
[425783580,1781888288000,-764.17,0.00036219,30]
[425783581,1781888288000,-4625.81,0.00036219,30]
[425783571,1781888288000,-5085.36,0.00036219,30]
[425783579,1781888288000,-500.0,0.00036219,30]
[425783591,1781888288000,-500.0,0.00036219,30]
[425783592,1781888288000,-710.65,0.00036219,30]
[425783594,1781888288000,-1720.71,0.00036219,30]
[425783587,1781888288000,-914.03,0.00036219,30]
[425783589,1781888288000,-500.0,0.00036219,30]
[425783586,1781888288000,-552.68,0.00036219,30]
[425783582,1781888288000,-1885.01,0.00036219,30]
[425783593,1781888288000,-3165.0,0.00036219,30]
[425783583,1781888288000,-3037.54,0.00036219,30]
[425783576,1781888288000,-457.85013324,0.00036219,30]
[425783575,1781888288000,-8051.7,0.00036219,30]
[425783585,1781888288000,-1085.5,0.00036219,30]
[425783661,1781888289000,-573.56,0.0003628,2]
[425783660,1781888289000,-185.06,0.0003628,2]
[425783667,1781888289000,-396.25,0.0003628,2]
[425783668,1781888289000,-396.08,0.0003628,2]
[425783659,1781888289000,-644.15,0.0003628,2]
[425783657,1781888289000,-396.15,0.00036278,2]
[425783666,1781888289000,-644.16,0.0003628,2]
[425783658,1781888289000,-151.0,0.00036278,2]
[425783663,1781888289000,-482.19,0.0003628,2]
[425783656,1781888289000,-5832.45,0.00036273,30]
[425783665,1781888289000,-573.01,0.0003628,2]
[425783669,1781888289000,-573.56,0.0003628,2]
[425783664,1781888289000,-573.59,0.0003628,2]
[425783683,1781888289000,-572.83,0.00036289,2]
[425783672,1781888289000,-151.0,0.00036282,2]
[425783671,1781888289000,-412.22,0.00036282,2]
[425783679,1781888289000,-644.27,0.00036289,2]
[425783673,1781888289000,-151.0,0.00036282,2]
[425783675,1781888289000,-482.37,0.00036282,2]
[425783677,1781888289000,-151.0,0.00036284,2]
[425783678,1781888289000,-573.61,0.00036289,2]
[425783674,1781888289000,-482.05,0.00036282,2]
[425783670,1781888289000,-644.29,0.0003628,2]
[425783676,1781888289000,-158.43463363,0.00036284,2]
[425783681,1781888289000,-643.98,0.00036289,2]
[425783680,1781888289000,-482.3,0.00036289,2]
[425783655,1781888289000,-1830.44,0.00036273,30]
[425783662,1781888289000,-572.27,0.0003628,2]
[425783648,1781888289000,-364.27254985,0.00036273,30]
[425783640,1781888289000,-1108.92,0.00036273,30]
[425783653,1781888289000,-500.0,0.00036273,30]
[425783693,1781888289000,-5085.36,0.00036328,30]
[425783625,1781888289000,-5781.35,0.00036273,30]
[425783630,1781888289000,-764.17,0.00036273,30]
[425783631,1781888289000,-4625.81,0.00036273,30]
[425783629,1781888289000,-500.0,0.00036273,30]
[425783626,1781888289000,-8051.7,0.00036273,30]
[425783627,1781888289000,-500.0,0.00036273,30]
[425783632,1781888289000,-1885.01,0.00036273,30]
[425783628,1781888289000,-1286.36,0.00036273,30]
[425783643,1781888289000,-3165.0,0.00036273,30]
[425783635,1781888289000,-1085.5,0.00036273,30]
[425783642,1781888289000,-710.65,0.00036273,30]
[425783641,1781888289000,-500.0,0.00036273,30]
[425783633,1781888289000,-3037.54,0.00036273,30]
[425783634,1781888289000,-924.86,0.00036273,30]
[425783644,1781888289000,-1720.71,0.00036273,30]
[425783638,1781888289000,-770.28,0.00036273,30]
[425783636,1781888289000,-552.68,0.00036273,30]
[425783637,1781888289000,-914.03,0.00036273,30]
[425783639,1781888289000,-500.0,0.00036273,30]
[425783649,1781888289000,-500.0,0.00036273,2]
[425783650,1781888289000,-651.48,0.00036273,30]
[425783651,1781888289000,-1131.94,0.00036273,30]
[425783646,1781888289000,-917.69,0.00036273,30]
[425783645,1781888289000,-1936.23,0.00036273,30]
[425783647,1781888289000,-850.26,0.00036273,30]
[425783652,1781888289000,-1252.38,0.00036273,30]
[425783654,1781888289000,-1000.78,0.00036273,30]
[425783624,1781888289000,-1257.63,0.00036273,30]
[425783694,1781888289000,-1877.0,0.00036328,2]
[425783691,1781888289000,-711.87,0.00036328,30]
[425783719,1781888289000,-500.0,0.00036328,2]
[425783729,1781888289000,-151.0,0.00036368,30]
[425783728,1781888289000,-151.0,0.00036368,30]
[425783731,1781888289000,-552.19941514,0.00036382,30]
[425783730,1781888289000,-284.56486054,0.00036373,7]
[425783720,1781888289000,-651.48,0.00036328,30]
[425783725,1781888289000,-1830.44,0.00036328,30]
[425783723,1781888289000,-500.0,0.00036328,30]
[425783721,1781888289000,-1131.94,0.00036328,30]
[425783727,1781888289000,-506.0,0.00036364,17]
[425783722,1781888289000,-1252.38,0.00036328,30]
[425783726,1781888289000,-535857.15281736,0.00036346,30]
[425783733,1781888289000,-769.14,0.00036383,30]
[425783743,1781888289000,-500.0,0.00036383,30]
[425783735,1781888289000,-536.88,0.00036383,30]
[425783732,1781888289000,-1356.93,0.00036383,30]
[425783736,1781888289000,-508.71,0.00036383,30]
[425783734,1781888289000,-544.12,0.00036383,30]
[425783742,1781888289000,-500.0,0.00036383,30]
[425783738,1781888289000,-500.0,0.00036383,30]
[425783739,1781888289000,-531.64,0.00036383,30]
[425783737,1781888289000,-500.0,0.00036383,30]
[425783741,1781888289000,-1095.52,0.00036383,30]
[425783740,1781888289000,-578.3,0.00036383,30]
[425783744,1781888289000,-809.71,0.00036383,30]
[425783745,1781888289000,-923.44,0.00036383,30]
[425783682,1781888289000,-482.37,0.00036289,2]
[425783712,1781888289000,-500.0,0.00036328,30]
[425783713,1781888289000,-710.65,0.00036328,30]
[425783724,1781888289000,-1000.78,0.00036328,30]
[425783716,1781888289000,-1936.23,0.00036328,30]
[425783710,1781888289000,-500.0,0.00036328,30]
[425783686,1781888289000,-396.25,0.00036293,2]
[425783692,1781888289000,-809.43,0.00036328,30]
[425783685,1781888289000,-599.58,0.00036292,2]
[425783684,1781888289000,-1000.0,0.0003629,8]
[425783687,1781888289000,-573.56,0.00036295,2]
[425783689,1781888289000,-500.0,0.00036328,2]
[425783688,1781888289000,-507.45,0.00036328,2]
[425783695,1781888289000,-1257.63,0.00036328,30]
[425783697,1781888289000,-8051.7,0.00036328,30]
[425783696,1781888289000,-5781.35,0.00036328,30]
[425783698,1781888289000,-500.0,0.00036328,30]
[425783701,1781888289000,-764.17,0.00036328,30]
[425783699,1781888289000,-1286.36,0.00036328,30]
[425783690,1781888289000,-2000.0,0.00036328,4]
[425783700,1781888289000,-500.0,0.00036328,30]
[425783706,1781888289000,-1085.5,0.00036328,30]
[425783715,1781888289000,-1720.71,0.00036328,30]
[425783711,1781888289000,-1108.92,0.00036328,30]
[425783717,1781888289000,-917.69,0.00036328,30]
[425783714,1781888289000,-3165.0,0.00036328,30]
[425783708,1781888289000,-914.03,0.00036328,30]
[425783709,1781888289000,-770.28,0.00036328,30]
[425783707,1781888289000,-552.68,0.00036328,30]
[425783703,1781888289000,-1885.01,0.00036328,30]
[425783705,1781888289000,-924.86,0.00036328,30]
[425783704,1781888289000,-3037.54,0.00036328,30]
[425783702,1781888289000,-4625.81,0.00036328,30]
[425783718,1781888289000,-850.26,0.00036328,30]
[425783785,1781888290000,-500.0,0.00036383,30]
[425783788,1781888290000,-500.0,0.00036383,30]
[425783790,1781888290000,-1013.66,0.00036383,30]
[425783772,1781888290000,-547.88,0.00036383,30]
[425783793,1781888290000,-695.27,0.00036383,30]
[425783782,1781888290000,-780.74,0.00036383,30]
[425783781,1781888290000,-634.83,0.00036383,30]
[425783771,1781888290000,-544.23,0.00036383,30]
[425783770,1781888290000,-500.0,0.00036383,30]
[425783777,1781888290000,-500.0,0.00036383,30]
[425783783,1781888290000,-594.02,0.00036383,30]
[425783792,1781888290000,-574.37,0.00036383,30]
[425783786,1781888290000,-1013.87,0.00036383,30]
[425783798,1781888290000,-628.07,0.00036383,30]
[425783784,1781888290000,-743.84,0.00036383,30]
[425783787,1781888290000,-2492.23,0.00036383,30]
[425783791,1781888290000,-1109.66,0.00036383,30]
[425783794,1781888290000,-2528.15,0.00036383,30]
[425783800,1781888290000,-918.47,0.00036383,30]
[425783795,1781888290000,-636.13,0.00036383,30]
[425783796,1781888290000,-1182.85,0.00036383,30]
[425783803,1781888290000,-500.0,0.00036383,30]
[425783799,1781888290000,-722.6,0.00036383,30]
[425783802,1781888290000,-636.4,0.00036383,30]
[425783797,1781888290000,-620.19,0.00036383,30]
[425783801,1781888290000,-900.24,0.00036383,30]
[425783776,1781888290000,-537.97,0.00036383,30]
[425783789,1781888290000,-577.97,0.00036383,30]
[425783778,1781888290000,-500.0,0.00036383,30]
[425783805,1781888290000,-643.62,0.00036383,30]
[425783780,1781888290000,-500.0,0.00036383,30]
[425783746,1781888290000,-580.64,0.00036383,30]
[425783754,1781888290000,-588.74,0.00036383,30]
[425783748,1781888290000,-500.0,0.00036383,30]
[425783749,1781888290000,-747.58,0.00036383,30]
[425783750,1781888290000,-1017.11,0.00036383,30]
[425783751,1781888290000,-500.0,0.00036383,30]
[425783752,1781888290000,-674.8,0.00036383,30]